[Event "Late-Titled-Tuesday-Blitz-October-17-2023"]
[Site "Chess.com"]
[Date "2023.10.17"]
[Round "2"]
[White "Mbneu"]
[Black "slorovel"]
[Result "1-0"]
[WhiteElo "2246"]
[BlackElo "2457"]
[TimeControl "180+1"]
[EndTime "14:15:48 PDT"]
[Termination "Mbneu won by checkmate"]

1. d4 {[%clk 0:02:58.7]} 1... Nf6 {[%clk 0:02:50.4]} 2. c4 {[%clk 0:02:59.1]}
2... e6 {[%clk 0:02:42.4]} 3. Nc3 {[%clk 0:02:57.2]} 3... b6 {[%clk 0:02:41.9]}
4. Nf3 {[%clk 0:02:55.8]} 4... Bb7 {[%clk 0:02:42.1]} 5. g3 {[%clk 0:02:55.8]}
5... c5 {[%clk 0:02:42.1]} 6. d5 {[%clk 0:02:55]} 6... d6 {[%clk 0:02:35.4]} 7.
Bg2 {[%clk 0:02:50.2]} 7... Be7 {[%clk 0:02:35.1]} 8. O-O {[%clk 0:02:48.9]}
8... O-O {[%clk 0:02:34.9]} 9. dxe6 {[%clk 0:02:39.4]} 9... fxe6 {[%clk
0:02:33.5]} 10. Ng5 {[%clk 0:02:37.2]} 10... Bxg2 {[%clk 0:02:29.3]} 11. Kxg2
{[%clk 0:02:38.1]} 11... Qc8 {[%clk 0:02:26.4]} 12. e4 {[%clk 0:02:30.7]} 12...
h6 {[%clk 0:02:25.4]} 13. Nh3 {[%clk 0:02:30.3]} 13... Qb7 {[%clk 0:02:25.7]}
14. f3 {[%clk 0:02:29.4]} 14... Nc6 {[%clk 0:02:25.2]} 15. Be3 {[%clk
0:02:28.7]} 15... e5 {[%clk 0:02:23.8]} 16. Nd5 {[%clk 0:02:20]} 16... Nd4
{[%clk 0:02:23.7]} 17. Bxd4 {[%clk 0:02:19.7]} 17... cxd4 {[%clk 0:02:22]} 18.
Nf2 {[%clk 0:02:11.6]} 18... Nxd5 {[%clk 0:02:21.7]} 19. cxd5 {[%clk 0:02:11.2]}
19... Bg5 {[%clk 0:02:17.5]} 20. Ng4 {[%clk 0:02:03.7]} 20... h5 {[%clk
0:02:15.4]} 21. h4 {[%clk 0:02:01.7]} 21... hxg4 {[%clk 0:02:07.4]} 22. hxg5
{[%clk 0:02:01.4]} 22... gxf3+ {[%clk 0:02:05.1]} 23. Rxf3 {[%clk 0:02:01.9]}
23... Qe7 {[%clk 0:02:04.9]} 24. Rxf8+ {[%clk 0:01:44.3]} 24... Rxf8 {[%clk
0:02:05.8]} 25. Qg4 {[%clk 0:01:44.1]} 25... Qf7 {[%clk 0:02:00]} 26. g6 {[%clk
0:01:39.6]} 26... Qf2+ {[%clk 0:01:55.7]} 27. Kh3 {[%clk 0:01:37.2]} 27... d3
{[%clk 0:01:39.8]} 28. Rh1 {[%clk 0:01:16.3]} 28... Qf3 {[%clk 0:01:33.6]} 29.
Qe6+ {[%clk 0:01:04.3]} 29... Kh8 {[%clk 0:01:33]} 30. Rh2 {[%clk 0:01:03.7]}
30... Qh5+ {[%clk 0:01:24.9]} 31. Kg2 {[%clk 0:01:03]} 31... Rf2+ {[%clk
0:01:25.5]} 32. Kxf2 {[%clk 0:01:01.2]} 32... Qxh2+ {[%clk 0:01:26.4]} 33. Kf1
{[%clk 0:00:55]} 33... Qe2+ {[%clk 0:01:23.9]} 34. Kg1 {[%clk 0:00:55.1]} 34...
Qe3+ {[%clk 0:01:24.4]} 35. Kh2 {[%clk 0:00:53]} 35... Qf2+ {[%clk 0:01:18.3]}
36. Kh3 {[%clk 0:00:51.9]} 36... Qf8 {[%clk 0:01:17.9]} 37. Kg2 {[%clk
0:00:49.4]} 37... d2 {[%clk 0:01:17.3]} 38. Qh3+ {[%clk 0:00:48.5]} 38... Kg8
{[%clk 0:01:17.7]} 39. Qh7# {[%clk 0:00:49.2]} 1-0

[Event "Late-Titled-Tuesday-Blitz-October-17-2023"]
[Site "Chess.com"]
[Date "2023.10.17"]
[Round "2"]
[White "miraitrunks"]
[Black "gahryman"]
[Result "0-1"]
[WhiteElo "2206"]
[BlackElo "2659"]
[TimeControl "180+1"]
[EndTime "14:16:08 PDT"]
[Termination "gahryman won by checkmate"]

1. e4 {[%clk 0:02:59.9]} 1... c5 {[%clk 0:02:46.6]} 2. c3 {[%clk 0:02:59.5]}
2... Nf6 {[%clk 0:02:44.3]} 3. e5 {[%clk 0:02:59.5]} 3... Nd5 {[%clk 0:02:44.9]}
4. d4 {[%clk 0:02:59.7]} 4... cxd4 {[%clk 0:02:44]} 5. Qxd4 {[%clk 0:02:57.4]}
5... e6 {[%clk 0:02:43]} 6. Nf3 {[%clk 0:02:54.8]} 6... Nc6 {[%clk 0:02:43.2]}
7. Qe4 {[%clk 0:02:54.7]} 7... f5 {[%clk 0:02:43.8]} 8. exf6 {[%clk 0:02:52.5]}
8... Nxf6 {[%clk 0:02:43.2]} 9. Qh4 {[%clk 0:02:51.3]} 9... d5 {[%clk
0:02:38.1]} 10. Bd3 {[%clk 0:02:49.5]} 10... Bd6 {[%clk 0:02:36.7]} 11. Bg6+
{[%clk 0:02:48.5]} 11... Ke7 {[%clk 0:02:29.2]} 12. Bc2 {[%clk 0:02:47.9]} 12...
h6 {[%clk 0:02:19.3]} 13. O-O {[%clk 0:02:42]} 13... e5 {[%clk 0:02:04.6]} 14.
Re1 {[%clk 0:02:39]} 14... Kf7 {[%clk 0:02:04.6]} 15. Nbd2 {[%clk 0:02:13.7]}
15... e4 {[%clk 0:02:03]} 16. Nxe4 {[%clk 0:01:34.3]} 16... dxe4 {[%clk
0:02:02.2]} 17. Bxe4 {[%clk 0:01:15.8]} 17... g5 {[%clk 0:01:30]} 18. Bxg5
{[%clk 0:00:48.8]} 18... hxg5 {[%clk 0:01:24.4]} 19. Nxg5+ {[%clk 0:00:49.7]}
19... Kg7 {[%clk 0:01:24.2]} 20. Ne6+ {[%clk 0:00:36.9]} 20... Bxe6 {[%clk
0:01:18.1]} 21. Qg5+ {[%clk 0:00:37.3]} 21... Kf8 {[%clk 0:01:17.3]} 22. Bxc6
{[%clk 0:00:35.9]} 22... Bxh2+ {[%clk 0:01:16.9]} 23. Kf1 {[%clk 0:00:35.2]}
23... Bc4+ {[%clk 0:01:16.8]} 24. Re2 {[%clk 0:00:35.8]} 24... Bf4 {[%clk
0:00:58.1]} 25. Qc5+ {[%clk 0:00:31.7]} 25... Bd6 {[%clk 0:00:58.2]} 26. Qxc4
{[%clk 0:00:32]} 26... Rh1# {[%clk 0:00:57.4]} 0-1

[Event "Late-Titled-Tuesday-Blitz-October-17-2023"]
[Site "Chess.com"]
[Date "2023.10.17"]
[Round "2"]
[White "mac0504"]
[Black "AlexandraBotez"]
[Result "1-0"]
[WhiteElo "2572"]
[BlackElo "2348"]
[TimeControl "180+1"]
[EndTime "14:16:12 PDT"]
[Termination "mac0504 won by resignation"]

1. d4 {[%clk 0:03:00.9]} 1... Nf6 {[%clk 0:02:55.8]} 2. c4 {[%clk 0:03:01]} 2...
g6 {[%clk 0:02:56.2]} 3. Nc3 {[%clk 0:02:59.5]} 3... d6 {[%clk 0:02:56.5]} 4. e4
{[%clk 0:02:58.5]} 4... Bg7 {[%clk 0:02:56.9]} 5. Be2 {[%clk 0:02:55.1]} 5...
O-O {[%clk 0:02:57]} 6. Be3 {[%clk 0:02:55.9]} 6... Nbd7 {[%clk 0:02:57.2]} 7.
h4 {[%clk 0:02:55.1]} 7... h5 {[%clk 0:02:57.1]} 8. Nh3 {[%clk 0:02:55]} 8... e5
{[%clk 0:02:57.2]} 9. d5 {[%clk 0:02:54.9]} 9... a5 {[%clk 0:02:57.3]} 10. Ng5
{[%clk 0:02:54.3]} 10... Nc5 {[%clk 0:02:57.4]} 11. f3 {[%clk 0:02:54.2]} 11...
Bd7 {[%clk 0:02:55]} 12. Qc2 {[%clk 0:02:51.8]} 12... Nh7 {[%clk 0:02:50.5]} 13.
O-O-O {[%clk 0:02:49.2]} 13... f5 {[%clk 0:02:34.6]} 14. Bxc5 {[%clk 0:02:29]}
14... dxc5 {[%clk 0:02:34]} 15. Ne6 {[%clk 0:02:29.2]} 15... Bxe6 {[%clk
0:02:19.6]} 16. dxe6 {[%clk 0:02:30.1]} 16... Qe8 {[%clk 0:02:18.1]} 17. Nb5
{[%clk 0:02:10.6]} 17... Rc8 {[%clk 0:02:15.7]} 18. Rd7 {[%clk 0:02:03.6]} 18...
Qxe6 {[%clk 0:02:05.7]} 19. Rxc7 {[%clk 0:01:39.9]} 19... fxe4 {[%clk
0:02:03.8]} 20. Qxe4 {[%clk 0:01:35.3]} 20... Rxc7 {[%clk 0:01:24.1]} 21. Nxc7
{[%clk 0:01:36.2]} 21... Qc6 {[%clk 0:01:22.5]} 22. Nd5 {[%clk 0:01:32.6]} 22...
Rf7 {[%clk 0:01:06.3]} 23. Bd3 {[%clk 0:01:31.2]} 23... Nf8 {[%clk 0:01:05]} 24.
g4 {[%clk 0:01:28.7]} 24... hxg4 {[%clk 0:01:04.6]} 25. fxg4 {[%clk 0:01:25.2]}
25... a4 {[%clk 0:00:46.3]} 26. a3 {[%clk 0:01:20.9]} 26... Rd7 {[%clk
0:00:42.6]} 27. Kb1 {[%clk 0:01:19.7]} 27... b5 {[%clk 0:00:42.9]} 28. cxb5
{[%clk 0:01:15.1]} 28... Qb7 {[%clk 0:00:39.2]} 29. Bc4 {[%clk 0:01:13.8]} 29...
Kh8 {[%clk 0:00:38.3]} 30. h5 {[%clk 0:01:09.9]} 30... g5 {[%clk 0:00:38.3]} 31.
h6 {[%clk 0:01:10.3]} 31... Rf7 {[%clk 0:00:27.2]} 32. hxg7+ {[%clk 0:01:07.4]}
32... Kxg7 {[%clk 0:00:28.1]} 33. Rh5 {[%clk 0:01:03.8]} 1-0

[Event "Late-Titled-Tuesday-Blitz-October-17-2023"]
[Site "Chess.com"]
[Date "2023.10.17"]
[Round "2"]
[White "Dhaydon19"]
[Black "TigrVShlyape"]
[Result "1/2-1/2"]
[WhiteElo "2532"]
[BlackElo "2818"]
[TimeControl "180+1"]
[EndTime "14:16:18 PDT"]
[Termination "Game drawn by repetition"]

1. d4 {[%clk 0:01:35.2]} 1... Nf6 {[%clk 0:02:57.7]} 2. c4 {[%clk 0:01:30.8]}
2... e6 {[%clk 0:02:57.1]} 3. Nf3 {[%clk 0:01:31.3]} 3... Bb4+ {[%clk
0:02:48.6]} 4. Bd2 {[%clk 0:01:30.3]} 4... a5 {[%clk 0:02:46.6]} 5. a3 {[%clk
0:01:29.6]} 5... Be7 {[%clk 0:02:44.5]} 6. Nc3 {[%clk 0:01:29.9]} 6... d5 {[%clk
0:02:44.2]} 7. cxd5 {[%clk 0:01:29.4]} 7... exd5 {[%clk 0:02:43.9]} 8. g3 {[%clk
0:01:30.1]} 8... c6 {[%clk 0:02:43.5]} 9. Bg2 {[%clk 0:01:30.8]} 9... O-O {[%clk
0:02:43]} 10. O-O {[%clk 0:01:31.5]} 10... Bf5 {[%clk 0:02:41.6]} 11. Rc1 {[%clk
0:01:31.9]} 11... Nbd7 {[%clk 0:02:40.1]} 12. Na4 {[%clk 0:01:29.7]} 12... Ne4
{[%clk 0:02:36.4]} 13. Be3 {[%clk 0:01:28.4]} 13... Re8 {[%clk 0:02:31.4]} 14.
Nd2 {[%clk 0:01:28.3]} 14... Nd6 {[%clk 0:02:22]} 15. Nb3 {[%clk 0:01:25.9]}
15... Nc4 {[%clk 0:02:20.2]} 16. Nbc5 {[%clk 0:01:16.8]} 16... Bxc5 {[%clk
0:02:16.7]} 17. Rxc4 {[%clk 0:01:05.3]} 17... dxc4 {[%clk 0:02:12.9]} 18. dxc5
{[%clk 0:01:03.6]} 18... Be4 {[%clk 0:02:00.9]} 19. Bh3 {[%clk 0:00:53.5]} 19...
Nf6 {[%clk 0:01:56.7]} 20. Qc1 {[%clk 0:00:51.9]} 20... Nd5 {[%clk 0:01:52.5]}
21. Bd2 {[%clk 0:00:44.7]} 21... b5 {[%clk 0:01:36.7]} 22. cxb6 {[%clk
0:00:42.9]} 22... Nxb6 {[%clk 0:01:37]} 23. Nc5 {[%clk 0:00:41]} 23... Qe7
{[%clk 0:01:27.4]} 24. Be3 {[%clk 0:00:35]} 24... Nd5 {[%clk 0:01:26.7]} 25. Bd4
{[%clk 0:00:34.9]} 25... c3 {[%clk 0:01:22.8]} 26. bxc3 {[%clk 0:00:32.2]} 26...
Rad8 {[%clk 0:01:18.4]} 27. f3 {[%clk 0:00:29.1]} 27... Bg6 {[%clk 0:01:16.6]}
28. e4 {[%clk 0:00:29.2]} 28... Nc7 {[%clk 0:01:06.2]} 29. Nb7 {[%clk 0:00:29]}
29... Ra8 {[%clk 0:01:02.8]} 30. Bc5 {[%clk 0:00:26.5]} 30... Qf6 {[%clk
0:01:01.4]} 31. Bd4 {[%clk 0:00:23.2]} 31... Qe7 {[%clk 0:01:00.8]} 32. Bc5
{[%clk 0:00:23.2]} 32... Qf6 {[%clk 0:00:58.9]} 33. Bd4 {[%clk 0:00:23.3]} 33...
Qe7 {[%clk 0:00:58.1]} 1/2-1/2

[Event "Late-Titled-Tuesday-Blitz-October-17-2023"]
[Site "Chess.com"]
[Date "2023.10.17"]
[Round "2"]
[White "YouShallNotPass001"]
[Black "OLDTERMINATOR"]
[Result "1-0"]
[WhiteElo "2392"]
[BlackElo "1648"]
[TimeControl "180+1"]
[EndTime "14:16:20 PDT"]
[Termination "YouShallNotPass001 won on time"]

1. Nf3 {[%clk 0:03:00.9]} 1... Nf6 {[%clk 0:02:57.6]} 2. e3 {[%clk 0:03:01.8]}
2... g6 {[%clk 0:02:56.9]} 3. Be2 {[%clk 0:03:00.6]} 3... Bg7 {[%clk 0:02:57.3]}
4. O-O {[%clk 0:03:01.5]} 4... d5 {[%clk 0:02:56.7]} 5. d4 {[%clk 0:03:02.4]}
5... O-O {[%clk 0:02:56]} 6. c4 {[%clk 0:03:03.3]} 6... c6 {[%clk 0:02:52.5]} 7.
Nc3 {[%clk 0:03:04.2]} 7... b6 {[%clk 0:02:52]} 8. b4 {[%clk 0:03:05.1]} 8...
Bb7 {[%clk 0:02:37.5]} 9. a4 {[%clk 0:03:00.6]} 9... Nbd7 {[%clk 0:02:35.2]} 10.
Ba3 {[%clk 0:03:00.4]} 10... Re8 {[%clk 0:02:32.6]} 11. Rc1 {[%clk 0:02:58]}
11... e5 {[%clk 0:02:29.8]} 12. cxd5 {[%clk 0:02:57.2]} 12... exd4 {[%clk
0:02:15.5]} 13. Nxd4 {[%clk 0:02:23.7]} 13... cxd5 {[%clk 0:01:58.1]} 14. Ncb5
{[%clk 0:02:22.3]} 14... Ne5 {[%clk 0:00:36.2]} 15. Nc7 {[%clk 0:02:17.6]} 15...
Rc8 {[%clk 0:00:29.6]} 16. Nxe8 {[%clk 0:02:16.1]} 16... Qxe8 {[%clk 0:00:28.5]}
17. Rxc8 {[%clk 0:01:41.6]} 17... Qxc8 {[%clk 0:00:24.6]} 18. Qb3 {[%clk
0:01:35]} 18... Qd7 {[%clk 0:00:19.4]} 19. Rc1 {[%clk 0:01:33.4]} 19... Ne4
{[%clk 0:00:14.6]} 20. Qc2 {[%clk 0:01:27.6]} 20... f5 {[%clk 0:00:09.6]} 21.
Qc7 {[%clk 0:01:22.4]} 21... Qxa4 {[%clk 0:00:07.8]} 22. Qxb7 {[%clk 0:01:20.2]}
22... Qxa3 {[%clk 0:00:06.3]} 23. Qxd5+ {[%clk 0:01:15.1]} 23... Nf7 {[%clk
0:00:02.8]} 24. Rc8+ {[%clk 0:00:58.3]} 1-0

[Event "Late-Titled-Tuesday-Blitz-October-17-2023"]
[Site "Chess.com"]
[Date "2023.10.17"]
[Round "2"]
[White "Skatchkov_V"]
[Black "Sanan_Sjugirov"]
[Result "0-1"]
[WhiteElo "2592"]
[BlackElo "2947"]
[TimeControl "180+1"]
[EndTime "14:16:23 PDT"]
[Termination "Sanan_Sjugirov won by resignation"]

1. d4 {[%clk 0:02:44]} 1... Nf6 {[%clk 0:02:58.6]} 2. c4 {[%clk 0:02:44.3]} 2...
e6 {[%clk 0:02:58.4]} 3. Nf3 {[%clk 0:02:44.1]} 3... b6 {[%clk 0:02:56.2]} 4. g3
{[%clk 0:02:44.1]} 4... Bb7 {[%clk 0:02:56.4]} 5. Bg2 {[%clk 0:02:44.3]} 5...
Bb4+ {[%clk 0:02:57]} 6. Bd2 {[%clk 0:02:44]} 6... c5 {[%clk 0:02:57.5]} 7. Bxb4
{[%clk 0:02:44.3]} 7... cxb4 {[%clk 0:02:58.4]} 8. O-O {[%clk 0:02:44.9]} 8...
O-O {[%clk 0:02:58.4]} 9. Qd3 {[%clk 0:02:45.5]} 9... d6 {[%clk 0:02:57.5]} 10.
Nbd2 {[%clk 0:02:45.9]} 10... Qe7 {[%clk 0:02:57.3]} 11. e4 {[%clk 0:02:46.4]}
11... e5 {[%clk 0:02:54.6]} 12. Ne1 {[%clk 0:02:43.4]} 12... Nc6 {[%clk
0:02:50.4]} 13. Nc2 {[%clk 0:02:43.4]} 13... a5 {[%clk 0:02:46.6]} 14. Rfe1
{[%clk 0:02:42.2]} 14... Rfe8 {[%clk 0:02:45.6]} 15. a3 {[%clk 0:02:33.8]} 15...
bxa3 {[%clk 0:02:44.8]} 16. Rxa3 {[%clk 0:02:33.6]} 16... exd4 {[%clk
0:02:32.9]} 17. Nxd4 {[%clk 0:02:31.8]} 17... Nb4 {[%clk 0:02:28.7]} 18. Qb1
{[%clk 0:02:30.9]} 18... g6 {[%clk 0:02:26.2]} 19. Rae3 {[%clk 0:02:15.3]} 19...
Rad8 {[%clk 0:02:21.7]} 20. h3 {[%clk 0:02:06.6]} 20... Nd7 {[%clk 0:02:08.7]}
21. Nf5 {[%clk 0:01:26.9]} 21... Qf8 {[%clk 0:02:04.8]} 22. Nd4 {[%clk 0:01:19]}
22... Nc5 {[%clk 0:02:03.7]} 23. Kh2 {[%clk 0:01:08.4]} 23... Qg7 {[%clk
0:02:00.3]} 24. Nb5 {[%clk 0:01:08.5]} 24... Bc6 {[%clk 0:01:52.5]} 25. Nc7
{[%clk 0:01:08.7]} 25... Re7 {[%clk 0:01:51.2]} 26. Nd5 {[%clk 0:01:09.4]} 26...
Bxd5 {[%clk 0:01:47.9]} 27. exd5 {[%clk 0:01:09.6]} 27... Rxe3 {[%clk
0:01:44.1]} 28. Rxe3 {[%clk 0:01:10.5]} 28... Qd4 {[%clk 0:01:36.8]} 29. Nf3
{[%clk 0:00:24]} 29... Qf6 {[%clk 0:01:35.5]} 30. b3 {[%clk 0:00:22.4]} 30...
Kg7 {[%clk 0:01:33.1]} 31. Qe1 {[%clk 0:00:21.7]} 31... Nc2 {[%clk 0:01:32.5]}
32. Qf1 {[%clk 0:00:21.2]} 32... Nxe3 {[%clk 0:01:32.1]} 33. fxe3 {[%clk
0:00:22.1]} 33... Re8 {[%clk 0:01:31.9]} 34. Qe1 {[%clk 0:00:20.8]} 34... Nxb3
{[%clk 0:01:30.8]} 35. g4 {[%clk 0:00:18.9]} 35... h6 {[%clk 0:01:27.3]} 36. Qg3
{[%clk 0:00:18.8]} 36... Rxe3 {[%clk 0:01:25.8]} 37. Qf2 {[%clk 0:00:18.5]}
37... Qf4+ {[%clk 0:01:20.6]} 38. Kh1 {[%clk 0:00:18.6]} 38... Nd4 {[%clk
0:01:20.2]} 0-1

[Event "Late-Titled-Tuesday-Blitz-October-17-2023"]
[Site "Chess.com"]
[Date "2023.10.17"]
[Round "2"]
[White "Haykoooo0o"]
[Black "TheMagician"]
[Result "1-0"]
[WhiteElo "2447"]
[BlackElo "2172"]
[TimeControl "180+1"]
[EndTime "14:16:27 PDT"]
[Termination "Haykoooo0o won by resignation"]

1. d4 {[%clk 0:03:00.9]} 1... Nf6 {[%clk 0:02:58.9]} 2. Nf3 {[%clk 0:03:00.7]}
2... g6 {[%clk 0:02:57.5]} 3. Bf4 {[%clk 0:03:00.5]} 3... Bg7 {[%clk 0:02:57.3]}
4. h3 {[%clk 0:03:01.2]} 4... d6 {[%clk 0:02:57.4]} 5. e3 {[%clk 0:03:01.8]}
5... O-O {[%clk 0:02:57.7]} 6. c3 {[%clk 0:03:02.5]} 6... b6 {[%clk 0:02:57.5]}
7. Be2 {[%clk 0:03:03.1]} 7... Bb7 {[%clk 0:02:58.2]} 8. O-O {[%clk 0:03:03.8]}
8... Nbd7 {[%clk 0:02:58.3]} 9. Bh2 {[%clk 0:03:04.5]} 9... Ne4 {[%clk
0:02:57.3]} 10. Nbd2 {[%clk 0:03:04.8]} 10... Ndf6 {[%clk 0:02:55.4]} 11. Rc1
{[%clk 0:03:04.7]} 11... Nxd2 {[%clk 0:02:52]} 12. Nxd2 {[%clk 0:03:04.9]} 12...
Re8 {[%clk 0:02:49.1]} 13. b4 {[%clk 0:03:03.2]} 13... Nd7 {[%clk 0:02:42.8]}
14. Qb3 {[%clk 0:03:01.6]} 14... e5 {[%clk 0:02:32.6]} 15. Nf3 {[%clk
0:02:57.4]} 15... Qe7 {[%clk 0:02:19.4]} 16. Rfd1 {[%clk 0:02:54.8]} 16... a6
{[%clk 0:02:19.5]} 17. c4 {[%clk 0:02:51.8]} 17... Rab8 {[%clk 0:02:15.1]} 18.
a3 {[%clk 0:02:49]} 18... Kh8 {[%clk 0:01:55.7]} 19. Qc2 {[%clk 0:02:46.8]}
19... f5 {[%clk 0:01:33.1]} 20. c5 {[%clk 0:02:30.2]} 20... Be4 {[%clk 0:01:19]}
21. Qd2 {[%clk 0:02:26.3]} 21... exd4 {[%clk 0:01:15.9]} 22. cxd6 {[%clk
0:02:19.8]} 22... cxd6 {[%clk 0:01:05.7]} 23. Nxd4 {[%clk 0:02:19.1]} 23... Nf6
{[%clk 0:01:01.5]} 24. Nc6 {[%clk 0:02:14.1]} 24... Bxc6 {[%clk 0:00:56.3]} 25.
Rxc6 {[%clk 0:02:15]} 25... Ne4 {[%clk 0:00:56.2]} 26. Qc2 {[%clk 0:02:13.1]}
26... a5 {[%clk 0:00:55.9]} 27. b5 {[%clk 0:02:11.4]} 27... Nxf2 {[%clk
0:00:52.7]} 28. Kxf2 {[%clk 0:02:06.5]} 28... Qxe3+ {[%clk 0:00:52.6]} 29. Kf1
{[%clk 0:02:03.6]} 29... Be5 {[%clk 0:00:37.3]} 30. Bxe5+ {[%clk 0:02:00.8]}
30... dxe5 {[%clk 0:00:36.7]} 31. Qc3 {[%clk 0:01:54.8]} 31... Qxc3 {[%clk
0:00:26]} 32. Rxc3 {[%clk 0:01:53.4]} 32... Red8 {[%clk 0:00:26]} 33. Rxd8+
{[%clk 0:01:49.1]} 33... Rxd8 {[%clk 0:00:25.7]} 34. Rc6 {[%clk 0:01:49.3]}
34... Rd4 {[%clk 0:00:20.9]} 35. Rxb6 {[%clk 0:01:47.5]} 35... Ra4 {[%clk
0:00:20.7]} 36. Rb8+ {[%clk 0:01:47.6]} 36... Kg7 {[%clk 0:00:20.1]} 37. b6
{[%clk 0:01:48.5]} 37... Rxa3 {[%clk 0:00:19.4]} 38. b7 {[%clk 0:01:49.1]} 38...
Rb3 {[%clk 0:00:19.3]} 39. Rg8+ {[%clk 0:01:43.3]} 39... Kxg8 {[%clk 0:00:03.6]}
40. Bc4+ {[%clk 0:01:35.2]} 1-0

[Event "Late-Titled-Tuesday-Blitz-October-17-2023"]
[Site "Chess.com"]
[Date "2023.10.17"]
[Round "2"]
[White "mfwagnerpeixoto"]
[Black "topin8"]
[Result "0-1"]
[WhiteElo "2314"]
[BlackElo "2504"]
[TimeControl "180+1"]
[EndTime "14:16:30 PDT"]
[Termination "topin8 won by resignation"]

1. d4 {[%clk 0:02:56.1]} 1... Nf6 {[%clk 0:02:59.6]} 2. Nf3 {[%clk 0:02:55.9]}
2... c5 {[%clk 0:02:59.1]} 3. e3 {[%clk 0:02:53.4]} 3... g6 {[%clk 0:02:58.5]}
4. c4 {[%clk 0:02:52]} 4... Bg7 {[%clk 0:02:58.5]} 5. Nc3 {[%clk 0:02:52.4]}
5... O-O {[%clk 0:02:58.4]} 6. Be2 {[%clk 0:02:52.9]} 6... d6 {[%clk 0:02:53.6]}
7. O-O {[%clk 0:02:51.5]} 7... Bf5 {[%clk 0:02:53.3]} 8. h3 {[%clk 0:02:51.5]}
8... cxd4 {[%clk 0:02:47.3]} 9. Nxd4 {[%clk 0:02:50.2]} 9... Bd7 {[%clk
0:02:47.5]} 10. Bf3 {[%clk 0:02:49.7]} 10... Nc6 {[%clk 0:02:47.6]} 11. b3
{[%clk 0:02:48.2]} 11... Nxd4 {[%clk 0:02:43.9]} 12. exd4 {[%clk 0:02:47.7]}
12... Bc6 {[%clk 0:02:43.9]} 13. d5 {[%clk 0:02:45.4]} 13... Bd7 {[%clk
0:02:43]} 14. Bb2 {[%clk 0:02:44.6]} 14... a6 {[%clk 0:02:37.8]} 15. a4 {[%clk
0:02:26.1]} 15... Rb8 {[%clk 0:02:31.4]} 16. Re1 {[%clk 0:02:25.9]} 16... b5
{[%clk 0:02:27]} 17. axb5 {[%clk 0:02:25.1]} 17... axb5 {[%clk 0:02:27.9]} 18.
Nxb5 {[%clk 0:02:16.7]} 18... Bxb5 {[%clk 0:02:28.8]} 19. cxb5 {[%clk
0:02:17.2]} 19... Rxb5 {[%clk 0:02:28.6]} 20. Ra7 {[%clk 0:02:15.9]} 20... Re8
{[%clk 0:02:20.7]} 21. Qd3 {[%clk 0:01:57.9]} 21... Qb8 {[%clk 0:02:08.4]} 22.
Rexe7 {[%clk 0:01:32.4]} 22... Rxe7 {[%clk 0:02:09.3]} 23. Rxe7 {[%clk
0:01:31.5]} 23... Rxb3 {[%clk 0:02:08.7]} 24. Bc3 {[%clk 0:01:21.7]} 24... Qc8
{[%clk 0:00:34.8]} 25. Re3 {[%clk 0:01:12.5]} 25... Bh6 {[%clk 0:00:25.2]} 26.
Bxf6 {[%clk 0:01:08.3]} 26... Rxd3 {[%clk 0:00:19.9]} 27. Rxd3 {[%clk
0:01:09.2]} 27... Qf5 {[%clk 0:00:15.2]} 0-1

[Event "Late-Titled-Tuesday-Blitz-October-17-2023"]
[Site "Chess.com"]
[Date "2023.10.17"]
[Round "2"]
[White "VincentKeymer"]
[Black "BasilSmash"]
[Result "1-0"]
[WhiteElo "3088"]
[BlackElo "2639"]
[TimeControl "180+1"]
[EndTime "14:16:31 PDT"]
[Termination "VincentKeymer won on time"]

1. a3 {[%clk 0:03:00.9]} 1... d5 {[%clk 0:02:58.4]} 2. Nf3 {[%clk 0:03:00.6]}
2... Nf6 {[%clk 0:02:58]} 3. e3 {[%clk 0:03:00.4]} 3... c6 {[%clk 0:02:49.8]} 4.
c4 {[%clk 0:02:59.8]} 4... e6 {[%clk 0:02:46.4]} 5. b4 {[%clk 0:02:58.8]} 5...
a5 {[%clk 0:02:45.6]} 6. b5 {[%clk 0:02:58.8]} 6... cxb5 {[%clk 0:02:43.8]} 7.
cxd5 {[%clk 0:02:55.8]} 7... Nxd5 {[%clk 0:02:27.6]} 8. Bxb5+ {[%clk 0:02:55.3]}
8... Bd7 {[%clk 0:02:28.1]} 9. Be2 {[%clk 0:02:55.9]} 9... Nc6 {[%clk
0:02:27.2]} 10. O-O {[%clk 0:02:55.3]} 10... Be7 {[%clk 0:02:26.6]} 11. d4
{[%clk 0:02:55.5]} 11... O-O {[%clk 0:02:25.9]} 12. e4 {[%clk 0:02:56]} 12...
Nf6 {[%clk 0:02:26]} 13. Nc3 {[%clk 0:02:56.4]} 13... Rc8 {[%clk 0:02:24.4]} 14.
Bb2 {[%clk 0:02:54.1]} 14... Na7 {[%clk 0:02:05.9]} 15. Rb1 {[%clk 0:02:48.5]}
15... b5 {[%clk 0:02:05.4]} 16. d5 {[%clk 0:02:46.1]} 16... b4 {[%clk
0:02:00.5]} 17. axb4 {[%clk 0:02:34.6]} 17... axb4 {[%clk 0:02:01.4]} 18. Na2
{[%clk 0:02:34.2]} 18... exd5 {[%clk 0:01:54.6]} 19. exd5 {[%clk 0:02:30.5]}
19... Qa5 {[%clk 0:01:48.3]} 20. d6 {[%clk 0:02:27.2]} 20... Bd8 {[%clk
0:01:26.6]} 21. Nxb4 {[%clk 0:02:20.2]} 21... Re8 {[%clk 0:00:48.8]} 22. Nd3
{[%clk 0:01:59.7]} 22... Qd5 {[%clk 0:00:29.5]} 23. Nde5 {[%clk 0:01:58.7]}
23... Qxd1 {[%clk 0:00:16.1]} 24. Rfxd1 {[%clk 0:01:58.4]} 24... Nc6 {[%clk
0:00:16.5]} 25. Nxd7 {[%clk 0:01:52.7]} 25... Nxd7 {[%clk 0:00:17.4]} 26. Bb5
{[%clk 0:01:50.9]} 26... Bb6 {[%clk 0:00:09.5]} 27. Rbc1 {[%clk 0:01:50.6]}
27... Ncb8 {[%clk 0:00:09.6]} 28. Ne5 {[%clk 0:01:47.6]} 28... Rxc1 {[%clk
0:00:08.1]} 29. Rxc1 {[%clk 0:01:48]} 29... Rd8 {[%clk 0:00:06.9]} 30. Nc4
{[%clk 0:01:38.7]} 30... Bc5 {[%clk 0:00:05.8]} 31. Bc3 {[%clk 0:01:35.6]} 31...
Kf8 {[%clk 0:00:04.4]} 32. Ba5 {[%clk 0:01:30.6]} 32... Rc8 {[%clk 0:00:04.2]}
33. Bc7 {[%clk 0:01:31.2]} 33... f6 {[%clk 0:00:02.8]} 34. g3 {[%clk 0:01:28]}
34... Kf7 {[%clk 0:00:02.9]} 35. Re1 {[%clk 0:01:27.8]} 35... Rf8 {[%clk
0:00:02.5]} 36. Re7+ {[%clk 0:01:27.6]} 36... Kg6 {[%clk 0:00:02.7]} 37. Bxd7
{[%clk 0:01:27.9]} 37... Nxd7 {[%clk 0:00:02.9]} 38. Rxd7 {[%clk 0:01:28.8]} 1-0